Workbook

Sheet 견적서
A1: 견 적 서
A4: 강원대학교 산학협력단 | C4: 귀하
A5: 전화 :
A6: 팩스 :
A7: 담당 :
A9: 아래와 같이 견적합니다.
A11: 견 적 합 계 : | B11: =G43 -> 970500
A12: 견 적 일 자 : | B12: =NOW() -> 2011-01-13T15:14:11.260
A13: 결 재 조 건 :
A15: 품 명 | B15: 규 격 | C15: 수 량 | D15: 단 가 | E15: 금 액 | F15: 세 액 | G15: 합 계 액
A16: 플로터 잉크 | B16: PFI-102 블랙 130ml | C16: 1 | D16: =99000/1.1 -> 90000 | E16: =C16*D16 -> 90000 | F16: =E16*10% -> 9000 | G16: =SUM(E16:F16) -> 99000
A18: 플로터 잉크 | B18: PFI-102 매트블랙 130ml | C18: 1 | D18: =99000/1.1 -> 90000 | E18: 90000 | F18: 9000 | G18: 99000
A20: 플로터 잉크 | B20: PFI-102 파랑 130ml | C20: 1 | D20: =99000/1.1 -> 90000 | E20: 90000 | F20: 9000 | G20: 99000
A22: 플로터 잉크 | B22: PFI-102 빨강 130ml | C22: 1 | D22: =99000/1.1 -> 90000 | E22: =C22*D22 -> 90000 | F22: =E22*10% -> 9000 | G22: =SUM(E22:F22) -> 99000
A24: 플로터 잉크 | B24: PFI-102 노랑 130ml | C24: 1 | D24: =99000/1.1 -> 90000 | E24: =C24*D24 -> 90000 | F24: =E24*10% -> 9000 | G24: =SUM(E24:F24) -> 99000
A26: 마그네틱밧데리 | C26: 9 | D26: =44500/1.1 -> 40454.54545 | E26: =C26*D26 -> 364090.9091 | F26: =E26*10% -> 36409.09091 | G26: =SUM(E26:F26) -> 400500
A28: HP 잉크 | B28: C6578D (78번 컬러) | C28: 1 | D28: =39000/1.1 -> 35454.54545 | E28: =C28*D28 -> 35454.54545 | F28: =E28*10% -> 3545.454545 | G28: =SUM(E28:F28) -> 39000
A30: HP 잉크 | B30: 51645A (45번 검정) | C30: 1 | D30: =36000/1.1 -> 32727.27273 | E30: =C30*D30 -> 32727.27273 | F30: =E30*10% -> 3272.727273 | G30: =SUM(E30:F30) -> 36000
A43: * 결제계좌 : 신한 110-138-600484 씨-넷 | D43: 합 계 | E43: =SUM(E16:E42) -> 882272.7273 | F43: =SUM(F16:F42) -> 88227.27273 | G43: =SUM(G16:G42) -> 970500
A44: * 견적담당 : 조규옥(010-6380-1239)
A45: * REMARK
